fUST/lending_fUST_20240924
["ID","MTS","AMOUNT","RATE_DAILY","PERIOD"]
[339033389,1727151041193,-888.667387,0.0003388,14]
[339033390,1727151041202,-888.667387,0.0003388,14]
[339033391,1727151041212,-888.667387,0.0003388,14]
[339033392,1727151041222,-888.667387,0.0003388,14]
[339033393,1727151041231,-888.667387,0.0003388,14]
[339033394,1727151041241,-888.667387,0.0003388,14]
[339033395,1727151041250,-2425.313693,0.0003388,14]
[339033396,1727151041260,-2425.313693,0.0003388,14]
[339033397,1727151041271,-2425.313693,0.0003388,14]
[339033398,1727151041281,-2425.313693,0.0003388,14]
[339033399,1727151041290,-2425.313693,0.0003388,14]
[339033400,1727151041300,-2425.313693,0.0003388,14]
[339033401,1727151041312,-2425.313693,0.0003388,14]
[339033402,1727151041325,-2425.313693,0.0003388,14]
[339033403,1727151041335,-151.0,0.0003388,14]
[339033404,1727151041344,-151.0,0.0003388,14]
[339033405,1727151041354,-151.0,0.0003388,14]
[339033406,1727151041364,-151.0,0.0003388,14]
[339033407,1727151041373,-151.0,0.0003388,14]
[339033408,1727151041388,-151.0,0.0003388,14]
[339033409,1727151041398,-151.0,0.0003388,14]
[339033410,1727151041407,-151.0,0.0003388,14]
[339033411,1727151041417,-151.0,0.0003388,14]
[339033412,1727151041427,-151.0,0.0003388,14]
[339033413,1727151041436,-151.0,0.0003388,14]
[339033414,1727151041446,-151.0,0.0003388,14]
[339033415,1727151041456,-195.76263,0.0003388,14]
[339033416,1727151041465,-195.76263,0.0003388,14]
[339033417,1727151041475,-195.76263,0.0003388,14]
[339033418,1727151041484,-195.76263,0.0003388,14]
[339033419,1727151041494,-195.76263,0.0003388,14]
[339033420,1727151041506,-195.76263,0.0003388,14]
[339033421,1727151041515,-195.76263,0.0003388,14]
[339033422,1727151041525,-195.76263,0.0003388,14]
[339033423,1727151041535,-151.0,0.0003388,14]
[339033424,1727151041545,-151.0,0.0003388,14]
[339033425,1727151041555,-151.0,0.0003388,14]
[339033426,1727151041566,-151.0,0.0003388,14]
[339033427,1727151041576,-151.0,0.0003388,14]
[339033428,1727151041585,-151.0,0.0003388,14]
[339033429,1727151041595,-151.0,0.0003388,14]
[339033430,1727151041605,-151.0,0.0003388,14]
[339033431,1727151041615,-151.0,0.0003388,14]
[339033432,1727151041625,-151.0,0.0003388,14]
[339033433,1727151041634,-161.329104,0.0003388,14]
[339033434,1727151041643,-967.066354,0.0003388,14]
[339033435,1727151041653,-967.066354,0.0003388,14]
[339033436,1727151041662,-967.066354,0.0003388,14]
[339033437,1727151041672,-967.066354,0.0003388,14]
[339033438,1727151041682,-967.066354,0.0003388,14]
[339033439,1727151041691,-967.066354,0.0003388,14]
[339033440,1727151041700,-967.066354,0.0003388,14]
[339033441,1727151041710,-967.066354,0.0003388,14]
[339033442,1727151041720,-967.066354,0.0003388,14]
[339033443,1727151041730,-967.066354,0.0003388,14]
[339033444,1727151041739,-967.066354,0.0003388,14]
[339033445,1727151041749,-967.066358,0.0003388,14]
[339033446,1727151041758,-151.0,0.0003388,14]
[339033447,1727151041767,-151.0,0.0003388,14]
[339033448,1727151041777,-151.0,0.0003388,14]
[339033449,1727151041787,-151.0,0.0003388,14]
[339033450,1727151041796,-151.0,0.0003388,14]
[339033451,1727151041806,-151.0,0.0003388,14]
[339033452,1727151041817,-151.0,0.0003388,14]
[339033453,1727151041826,-151.0,0.0003388,14]
[339033454,1727151041836,-151.0,0.0003388,14]
[339033455,1727151041845,-151.0,0.0003388,14]
[339033456,1727151041855,-151.0,0.0003388,14]
[339033457,1727151041864,-151.0,0.0003388,14]
[339033458,1727151041874,-798.731807,0.0003388,14]
[339033459,1727151041884,-798.731807,0.0003388,14]
[339033460,1727151041893,-798.731807,0.0003388,14]
[339033461,1727151041906,-798.731807,0.0003388,14]
[339033462,1727151041916,-798.731807,0.0003388,14]
[339033463,1727151041925,-798.731807,0.0003388,14]
[339033464,1727151041935,-798.731807,0.0003388,14]
[339033465,1727151041944,-798.731807,0.0003388,14]
[339033466,1727151041954,-798.731807,0.0003388,14]
[339033467,1727151041964,-798.731807,0.0003388,14]
[339033468,1727151041973,-798.731807,0.0003388,14]
[339033469,1727151041983,-798.731799,0.0003388,14]
[339033470,1727151041993,-151.0,0.0003388,14]
[339033471,1727151042003,-151.0,0.0003388,14]
[339033472,1727151042012,-151.0,0.0003388,14]
[339033473,1727151042022,-182.540109,0.0003388,14]
[339033474,1727151042032,-151.0,0.0003388,14]
[339033475,1727151042041,-151.0,0.0003388,14]
[339033476,1727151042051,-151.0,0.0003388,14]
[339033477,1727151042060,-151.0,0.0003388,14]
[339033478,1727151042072,-303.76112,0.0003388,14]
[339033479,1727151042082,-151.0,0.0003388,14]
[339033480,1727151042091,-303.76112,0.0003388,14]
[339033481,1727151042101,-303.76112,0.0003388,14]
[339033482,1727151042112,-303.76112,0.0003388,14]
[339033483,1727151042123,-303.76112,0.0003388,14]
[339033484,1727151042132,-303.76112,0.0003388,14]
[339033485,1727151042142,-303.76112,0.0003388,14]
[339033486,1727151042151,-303.76112,0.0003388,14]
[339033487,1727151042161,-303.76112,0.0003388,14]
[339033488,1727151042171,-303.76112,0.0003388,14]
[339033489,1727151042181,-303.76112,0.0003388,14]
[339033490,1727151042190,-303.761128,0.0003388,14]
[339033491,1727151042201,-151.0,0.0003388,14]
[339033492,1727151042211,-151.0,0.0003388,14]
[339033493,1727151042220,-151.0,0.0003388,14]
[339033494,1727151042230,-151.0,0.0003388,14]
[339033495,1727151042239,-1000.0,0.0003388,28]
[339033496,1727151042249,-1000.0,0.0003388,28]
[339033497,1727151042259,-1000.0,0.0003388,28]
[339033498,1727151042268,-1000.0,0.0003388,28]
[339033499,1727151042279,-1000.0,0.0003388,28]
[339033500,1727151042289,-1000.0,0.0003388,28]
[339033501,1727151042298,-1000.0,0.0003388,28]
[339033502,1727151042308,-1000.0,0.0003388,28]
[339033503,1727151042319,-1000.0,0.0003388,28]
[339033504,1727151042328,-1000.0,0.0003388,28]
[339033505,1727151042339,-1000.0,0.0003388,28]
[339033506,1727151042348,-1000.0,0.0003388,28]
[339033507,1727151042358,-1000.0,0.0003388,28]
[339033508,1727151042367,-1000.0,0.0003388,28]
[339033509,1727151042378,-1000.0,0.0003388,28]
[339033510,1727151042389,-1000.0,0.0003388,28]
[339033511,1727151042398,-1000.0,0.0003388,28]
[339033512,1727151042408,-1000.0,0.0003388,28]
[339033513,1727151042417,-1000.0,0.0003388,28]
[339033514,1727151042427,-1000.0,0.0003388,28]
[339033515,1727151042436,-1000.0,0.0003388,28]
[339033516,1727151042445,-1000.0,0.0003388,28]
[339033517,1727151042454,-1000.0,0.0003388,28]
[339033518,1727151042464,-1000.0,0.0003388,28]
[339033519,1727151042474,-1000.0,0.0003388,28]
[339033520,1727151042484,-1000.0,0.0003388,28]
[339033521,1727151042494,-1000.0,0.0003388,28]
[339033522,1727151042505,-1000.0,0.0003388,28]
[339033523,1727151042514,-1000.0,0.0003388,28]
[339033524,1727151042524,-230.951373,0.0003388,14]
[339033525,1727151042533,-1000.0,0.0003388,28]
[339033526,1727151042544,-230.951373,0.0003388,14]
[339033527,1727151042553,-1000.0,0.0003388,28]
[339033528,1727151042562,-230.951373,0.0003388,14]
[339033529,1727151042573,-1000.0,0.0003388,28]
[339033530,1727151042583,-230.951373,0.0003388,14]
[339033531,1727151042593,-1000.0,0.0003388,28]
[339033532,1727151042602,-1000.0,0.0003388,28]
[339033533,1727151042611,-1000.0,0.0003388,28]
[339033534,1727151042621,-1000.0,0.0003388,28]
[339033535,1727151042631,-1000.0,0.0003388,28]
[339033536,1727151042640,-1000.0,0.0003388,28]
[339033537,1727151042650,-1000.0,0.0003388,28]
[339033538,1727151042659,-121.87171799,0.0003388,28]
[339033540,1727151042966,251.13286,0.00027,120]
[339033541,1727151042995,-151.0,0.0003358,14]
[339033542,1727151043006,-421.187957,0.0003388,28]
[339033543,1727151043019,-456.94032501,0.0003388,28]
[339033544,1727151043028,-1000.0,0.0003388,28]
[339033545,1727151043038,-1000.0,0.0003388,28]
[339033546,1727151043049,-230.951373,0.0003388,14]
[339033547,1727151043058,-1000.0,0.0003388,28]
[339033549,1727151043069,-230.951373,0.0003388,14]
[339033550,1727151043078,-566.095847,0.0003388,28]
[339033551,1727151043088,-230.951373,0.0003388,14]
[339033552,1727151043098,-230.951373,0.0003388,14]
[339033553,1727151043107,-1057.59395831,0.0003388,5]
[339033554,1727151043117,-500.0,0.00033889,2]
[339033555,1727151043126,-1000.0,0.00033889,2]
[339033556,1727151043136,-1000.0,0.00033889,2]
[339033557,1727151043146,-1000.0,0.00033889,2]
[339033558,1727151043156,-1000.0,0.00033889,2]
[339033559,1727151043165,-537.33617043,0.00033889,2]
[339033560,1727151043175,-500.0,0.00033889,14]
[339033561,1727151043184,-151.0,0.0003389,14]
[339033562,1727151043194,-151.305463,0.0003389,14]
[339033563,1727151043203,-151.0,0.0003389,14]
[339033564,1727151043212,-151.0,0.0003389,14]
[339033565,1727151043222,-151.0,0.0003389,14]
[339033566,1727151043231,-151.0,0.0003389,14]
[339033567,1727151043241,-151.0,0.0003389,14]
[339033568,1727151043250,-151.0,0.0003389,14]
[339033569,1727151043260,-151.0,0.0003389,14]
[339033570,1727151043269,-151.0,0.0003389,14]
[339033572,1727151043278,-151.0,0.0003389,14]
[339033573,1727151043287,-182.027181,0.0003389,14]
[339033574,1727151043297,-164.735801,0.0003389,14]
[339033575,1727151043306,-164.735801,0.0003389,14]
[339033576,1727151043315,-164.735801,0.0003389,14]
[339033577,1727151043325,-164.735801,0.0003389,14]
[339033578,1727151043334,-164.735801,0.0003389,14]
[339033579,1727151043343,-164.735801,0.0003389,14]
[339033580,1727151043353,-151.304025,0.0003389,14]
[339033581,1727151043363,-151.0,0.0003389,14]
[339033582,1727151043372,-151.0,0.0003389,14]
[339033583,1727151043385,-151.0,0.0003389,14]
[339033584,1727151043395,-151.0,0.0003389,14]
[339033585,1727151043404,-151.0,0.0003389,14]
[339033586,1727151043414,-246.38969,0.0003389,14]
[339033587,1727151043423,-246.38969,0.0003389,14]
[339033588,1727151043433,-246.38969,0.0003389,14]
[339033589,1727151043442,-246.38969,0.0003389,14]
[339033590,1727151043452,-246.38969,0.0003389,14]
[339033591,1727151043460,-151.0,0.0003389,14]
[339033592,1727151043469,-151.0,0.0003389,14]
[339033593,1727151043481,-151.0,0.0003389,14]
[339033594,1727151043490,-151.0,0.0003389,14]
[339033595,1727151043500,-151.0,0.0003389,14]
[339033596,1727151043509,-151.0,0.0003389,14]
[339033597,1727151043518,-551.06907,0.0003389,14]
[339033598,1727151043527,-551.06907,0.0003389,14]
[339033599,1727151043537,-551.06907,0.0003389,14]
[339033600,1727151043546,-551.06907,0.0003389,14]
[339033601,1727151043556,-551.06907,0.0003389,14]
[339033602,1727151043565,-551.06907,0.0003389,14]
[339033603,1727151043578,-888.667387,0.0003389,14]
[339033604,1727151043587,-888.667387,0.0003389,14]
[339033605,1727151043596,-888.667387,0.0003389,14]
[339033606,1727151043605,-888.667387,0.0003389,14]
[339033607,1727151043614,-2425.313693,0.0003389,14]
[339033608,1727151043623,-2425.313693,0.0003389,14]
[339033609,1727151043633,-2425.313693,0.0003389,14]
[339033610,1727151043643,-2425.313693,0.0003389,14]
[339033611,1727151043652,-151.0,0.0003389,14]
[339033612,1727151043661,-151.0,0.0003389,14]
[339033613,1727151043670,-162.59394,0.0003389,14]
[339033614,1727151043679,-151.0,0.0003389,14]
[339033615,1727151043688,-251.456066,0.0003389,14]
[339033616,1727151043697,-195.76263,0.0003389,14]
[339033617,1727151043707,-195.76263,0.0003389,14]
[339033619,1727151043716,-195.76263,0.0003389,14]
[339033621,1727151043725,-195.76263,0.0003389,14]
[339033622,1727151043734,-151.0,0.000339,14]
[339033623,1727151043743,-151.0,0.000339,14]
[339033624,1727151043752,-151.0,0.000339,14]
[339033625,1727151043762,-151.0,0.000339,14]
[339033626,1727151043771,-151.0,0.000339,14]
[339033627,1727151043780,-151.0,0.000339,14]
[339033628,1727151043789,-276.931064,0.000339,14]
[339033629,1727151043798,-276.931064,0.000339,14]
[339033630,1727151043808,-276.931064,0.000339,14]
[339033631,1727151043817,-276.931064,0.000339,14]
[339033632,1727151043827,-151.0,0.000339,14]
[339033633,1727151043836,-150.112233,0.000339,5]
[339033634,1727151043846,-150.112233,0.000339,8]
[339033635,1727151043855,-150.112233,0.000339,7]
[339033636,1727151043864,-150.112233,0.000339,9]
[339033637,1727151043873,-150.112233,0.000339,6]
[339033638,1727151043882,-150.112233,0.000339,7]
[339033639,1727151043892,-150.112233,0.000339,5]
[339033640,1727151043902,-150.112233,0.000339,9]
[339033641,1727151043912,-888.667387,0.000339,14]
[339033642,1727151043922,-888.667387,0.000339,14]
[339033643,1727151043931,-2425.313693,0.000339,14]
[339033644,1727151043940,-2425.313693,0.000339,14]
[339033645,1727151043950,-385.875515,0.000339,14]
[339033646,1727151043959,-151.0,0.000339,14]
[339033647,1727151043968,-195.76263,0.000339,14]
[339033648,1727151043977,-195.76263,0.000339,14]
[339033649,1727151043988,-150.112233,0.000339,10]
[339033650,1727151043997,-2115.18791662,0.0003394,5]
[339033651,1727151044006,-204.493458,0.0003395,14]
[339033652,1727151044016,-151.0,0.0003395,14]
[339033653,1727151044025,-551.06907,0.0003395,14]
[339033654,1727151044035,-551.069076,0.0003395,14]
[339033655,1727151044045,-888.667387,0.0003395,14]
[339033656,1727151044054,-888.66738991,0.0003395,14]
[339033657,1727151044063,-2425.313693,0.0003395,14]
[339033658,1727151044076,-2425.313693,0.0003395,14]
[339033659,1727151044085,-385.875515,0.0003395,14]
[339033660,1727151044094,-151.0,0.0003395,14]
[339033661,1727151044103,-195.76263,0.0003395,14]
[339033662,1727151044113,-195.762622,0.0003395,14]
[339033663,1727151044123,-1057.59395831,0.0003395,5]
[339033664,1727151044132,-4230.37583324,0.0003395,5]
[339033665,1727151044141,-151.0,0.0003396,14]
[339033666,1727151044151,-151.0,0.0003396,14]
[339033667,1727151044161,-151.0,0.0003396,14]
[339033668,1727151044170,-276.931064,0.0003396,14]
[339033669,1727151044180,-276.931064,0.0003396,14]
[339033670,1727151044189,-151.0,0.0003396,14]
[339033671,1727151044198,-151.0,0.0003396,14]
[339033672,1727151044207,-151.0,0.0003396,14]
[339033673,1727151044217,-151.0,0.0003396,14]
[339033674,1727151044226,-151.0,0.0003396,14]
[339033675,1727151044235,-164.735801,0.0003396,14]
[339033676,1727151044245,-164.735801,0.0003396,14]
[339033677,1727151044254,-164.735801,0.0003396,14]
[339033678,1727151044263,-164.735801,0.0003396,14]
[339033679,1727151044272,-151.0,0.0003396,14]
[339033680,1727151044281,-246.38969,0.0003396,14]
[339033681,1727151044291,-246.38969,0.0003396,14]
[339033682,1727151044300,-246.38969,0.0003396,14]
[339033683,1727151044309,-246.38969,0.0003396,14]
[339033684,1727151044318,-4230.37583324,0.0003396,5]
[339033685,1727151044332,-151.0,0.00033968,14]
[339033686,1727151044340,-151.0,0.00033968,14]
[339033687,1727151044349,-276.931064,0.00033968,14]
[339033688,1727151044439,-276.931064,0.00033968,14]
[339033689,1727151044449,-151.0,0.00033968,14]
[339033690,1727151044460,-598.17573823,0.00033968,2]
[339033691,1727151044469,-151.0,0.00033968,14]
[339033692,1727151044478,-151.0,0.00033968,14]
[339033693,1727151044487,-151.0,0.00033968,14]
[339033694,1727151044496,-164.735801,0.00033968,14]
[339033695,1727151044506,-164.735801,0.00033968,14]
[339033696,1727151044515,-151.0,0.00033968,14]
[339033697,1727151044523,-246.38969,0.00033968,14]
[339033698,1727151044532,-246.38969,0.00033968,14]
[339033699,1727151044541,-151.0,0.0003397,14]
[339033700,1727151044550,-151.0,0.0003397,14]
[339033701,1727151044560,-151.0,0.0003397,14]
[339033702,1727151044569,-151.0,0.0003397,14]
[339033703,1727151044580,-191.738948,0.0003397,14]
[339033704,1727151044589,-276.931064,0.0003397,14]
[339033705,1727151044598,-276.931064,0.0003397,14]
[339033706,1727151044607,-276.931064,0.0003397,14]
[339033707,1727151044617,-276.931064,0.0003397,14]
[339033708,1727151044626,-151.0,0.0003397,14]
[339033709,1727151044635,-152.979582,0.0003397,14]
[339033710,1727151044645,-151.0,0.0003397,14]
[339033711,1727151044654,-151.0,0.0003397,14]
[339033712,1727151044663,-151.0,0.0003397,14]
[339033713,1727151044672,-151.0,0.0003397,14]
[339033714,1727151044682,-151.0,0.0003397,14]
[339033715,1727151044690,-151.0,0.0003397,14]
[339033716,1727151044700,-151.0,0.0003397,14]
[339033717,1727151044709,-164.735801,0.0003397,14]
[339033718,1727151044718,-164.735801,0.0003397,14]
[339033719,1727151044727,-164.735801,0.0003397,14]
[339033720,1727151044737,-164.735801,0.0003397,14]
[339033721,1727151044746,-164.735801,0.0003397,14]
[339033722,1727151044755,-164.735801,0.0003397,14]
[339033723,1727151044764,-151.0,0.0003397,14]
[339033724,1727151044774,-151.0,0.0003397,14]
[339033725,1727151044783,-151.0,0.0003397,14]
[339033726,1727151044792,-151.0,0.0003397,14]
[339033727,1727151044801,-151.0,0.0003397,14]
[339033728,1727151044811,-246.38969,0.0003397,14]
[339033729,1727151044822,-246.38969,0.0003397,14]
[339033730,1727151044830,-246.38969,0.0003397,14]
[339033731,1727151044839,-246.38969,0.0003397,14]
[339033732,1727151044849,-246.38969,0.0003397,14]
[339033733,1727151044857,-246.38969,0.0003397,14]
[339033734,1727151044866,-3339.094433,0.0003397,14]
[339033735,1727151044876,-3339.094433,0.0003397,14]
[339033736,1727151044885,-3339.094433,0.0003397,14]
[339033737,1727151044895,-468.0,0.00033973,2]
[339033738,1727151044904,-500.0,0.00033973,5]
[339033739,1727151044914,-480.4868524,0.00033973,5]
[339033740,1727151044923,-500.0,0.00033973,5]
[339033741,1727151044932,-503.52218049,0.00033973,5]
[339033742,1727151044941,-151.0,0.00033979,14]
[339033743,1727151044951,-151.0,0.00033979,14]
[339033744,1727151044960,-276.931064,0.00033979,14]
[339033745,1727151044969,-276.931064,0.00033979,14]
[339033746,1727151044978,-151.0,0.00033979,14]
[339033747,1727151044987,-164.735801,0.00033979,14]
[339033748,1727151044997,-164.735809,0.00033979,14]
[339033749,1727151045006,-278.905538,0.00033979,14]
[339033750,1727151045016,-246.38969,0.00033979,14]
[339033751,1727151045025,-246.389694,0.00033979,14]
[339033752,1727151045034,-3339.094441,0.00033979,14]
[339033753,1727151045043,-151.0,0.0003398,14]
[339033754,1727151045052,-151.0,0.0003398,14]
[339033755,1727151045061,-151.0,0.0003398,14]
[339033756,1727151045071,-151.0,0.0003398,14]
[339033757,1727151045080,-151.0,0.0003398,14]
[339033758,1727151045089,-151.0,0.0003398,14]
[339033759,1727151045098,-151.0,0.0003398,14]
[339033760,1727151045107,-151.0,0.0003398,14]
[339033761,1727151045116,-151.0,0.0003398,14]
[339033762,1727151045125,-152.754704,0.0003398,14]
[339033763,1727151045135,-151.0,0.0003398,14]
[339033764,1727151045144,-151.0,0.0003398,14]
[339033765,1727151045153,-235.277402,0.0003398,14]
[339033766,1727151045162,-272.651362,0.0003398,14]
[339033767,1727151045171,-151.0,0.0003398,14]
[339033768,1727151045180,-155.700668,0.0003398,14]
[339033769,1727151045189,-263.583155,0.0003398,14]
[339033770,1727151045198,-151.0,0.0003398,14]
[339033771,1727151045209,-151.0,0.0003398,14]
[339033772,1727151045218,-151.0,0.0003398,14]
[339033773,1727151045227,-151.0,0.0003398,14]
[339033774,1727151045236,-276.931064,0.0003398,14]
[339033775,1727151045245,-276.931064,0.0003398,14]
[339033776,1727151045254,-276.931064,0.0003398,14]
[339033777,1727151045264,-276.931064,0.0003398,14]
[339033778,1727151045273,-276.931064,0.0003398,14]
[339033779,1727151045282,-276.931063,0.0003398,14]
[339033780,1727151045292,-151.0,0.0003398,14]
[339033781,1727151045300,-151.0,0.0003398,14]
[339033782,1727151045310,-151.0,0.0003398,14]
[339033783,1727151045319,-151.0,0.0003398,14]
[339033784,1727151045330,-151.0,0.0003398,14]
[339033785,1727151045340,-151.0,0.0003398,14]
[339033786,1727151045349,-290.789694,0.0003398,14]
[339033787,1727151045358,-1003.31635428,0.00033989,7]
[339033788,1727151045368,-151.0,0.0003399,14]
[339033789,1727151045378,-151.0,0.0003399,14]
[339033790,1727151045390,-151.0,0.0003399,14]
[339033791,1727151045399,-151.0,0.0003399,7]
[339033792,1727151045409,-152.445819,0.0003399,7]
[339033793,1727151045418,-151.0,0.0003399,14]
[339033794,1727151045427,-152.397761,0.0003399,14]
[339033795,1727151045436,-151.0,0.0003399,14]
[339033796,1727151045445,-152.340745,0.0003399,14]
[339033797,1727151045455,-151.0,0.0003399,14]
[339033798,1727151045464,-151.0,0.0003399,14]
[339033799,1727151045472,-151.0,0.0003399,14]
[339033800,1727151045481,-151.0,0.0003399,14]
[339033801,1727151045490,-151.0,0.0003399,14]
[339033802,1727151045499,-151.0,0.0003399,14]
[339033803,1727151045508,-184.642759,0.0003399,14]
[339033804,1727151045517,-26340.48135705,0.00034,120]
[339033805,1727151045727,-151.0,0.000338,14]
[339033806,1727151045737,-363.7,0.0003387,3]
[339033807,1727151045746,-94.28016115,0.00034,120]
[339033809,1727151057292,387.634247,0.00027397,2]
[339033812,1727151958159,-347.32803,0.00027397,2]
[339033813,1727151958181,-151.0,0.0003,120]
[339033814,1727151958203,-151.0,0.0003,120]
[339033815,1727151958223,-192.950045,0.00031129,2]
[339033816,1727151958243,-165.310086,0.00031299,2]
[339033817,1727151958264,-176.307455,0.00031329,2]
[339033818,1727151958296,-400.0,0.00031625,2]
[339033819,1727151958318,-222.14329546,0.00031625,2]
[339033820,1727151991099,-166.758919,0.00031438,2]
[339033821,1727151991121,-3.52873487,0.00031625,2]
[339033823,1727152030111,-400.0,0.00031625,2]
[339033824,1727152030132,-146.52357835,0.00031625,2]
[339033825,1727152037150,-253.47642165,0.00031625,2]
[339033826,1727152037171,-211.0,0.00031626,2]
[339033827,1727152037192,-3246.0241813,0.00031626,2]
[339033828,1727152051106,-3596.56717351,0.00031626,2]
[339033829,1727152052101,-3216.14687686,0.00031626,2]
[339033831,1727152151112,-1499.12463956,0.0003,30]
[339033879,1727152238935,-600.0,0.0003,30]
[339033882,1727152239100,-1903.56037257,0.0003,30]
[339033883,1727152239110,-400.0,0.00031762,2]
[339033884,1727152239119,-400.0,0.00031762,2]
[339033885,1727152239128,-1820.90811043,0.00031763,2]
[339033930,1727152459281,2232.19,0.000221,2]
[339033933,1727153133167,-400.51495043,0.00025,30]
[339033934,1727153133188,-190.6812464,0.00025984,2]
[339033935,1727153133209,-178.85162,0.00026631,2]
[339033936,1727153133231,-302.543589,0.00026906,2]
[339033937,1727153133253,-164.350268,0.00027218,2]
[339033938,1727153133276,-164.350268,0.00027297,2]
[339033939,1727153133298,-70.60070356,0.00027376,2]
[339033940,1727153145166,-93.74956444,0.00027376,2]
[339033941,1727153145197,-387.355576,0.00027397,2]
[339033942,1727153145226,-164.350268,0.00027454,2]
[339033943,1727153145257,-164.350268,0.00027533,2]
[339033944,1727153145285,-164.350268,0.00027612,2]
[339033945,1727153145314,-164.350268,0.00027691,2]
[339033946,1727153145342,-164.350268,0.0002777,2]
[339033947,1727153145369,-164.350268,0.00027848,2]
[339033948,1727153145396,-164.350268,0.00027927,2]
[339033949,1727153145425,-164.350268,0.00028006,2]
[339033950,1727153145453,-164.350268,0.00028085,2]
[339033951,1727153145481,-56.81059579,0.00028164,2]
[339033952,1727153230106,-250.0,0.00027311,2]
[339033953,1727153230128,-365.944432,0.00027397,2]
[339033954,1727153230151,-860.6331265,0.00027562,2]
[339033955,1727153230172,-107.53967221,0.00028164,2]
[339033956,1727153230193,-164.350268,0.00028242,2]
[339033957,1727153230214,-231.471019,0.0002831,2]
[339033958,1727153230236,-104.14659283,0.00028321,2]
[339033959,1727153234136,-166.697417,0.00027231,2]
[339033960,1727153234159,-60.20367517,0.00028321,2]
[339033961,1727153234181,-164.350268,0.000284,2]
[339033962,1727153234203,-164.350268,0.00028479,2]
[339033963,1727153234225,-164.350268,0.00028558,2]
[339033964,1727153234249,-164.350268,0.00028636,2]
[339033965,1727153234270,-162.569009,0.00028764,2]
[339033966,1727153234291,-300.0,0.00028951,2]
[339033967,1727153234312,-300.0,0.00028951,2]
[339033968,1727153234336,-249.10466267,0.00028951,2]
[339033969,1727153234359,-1979.98257809,0.00028952,2]
[339033970,1727153236106,-4164.92821525,0.00028952,2]
[339033971,1727153240109,-1670.08309262,0.00028952,2]
[339033972,1727153240137,-1064.62833143,0.00028952,2]
[339033974,1727153357099,-738.922996,0.00025,30]
[339033975,1727153357120,-300.0,0.00028742,2]
[339033976,1727153357141,-300.0,0.00028742,2]
[339033977,1727153357162,-4083.7829371,0.00028743,2]
[339034102,1727153438110,-300.0,0.00028742,2]
[339034103,1727153438120,-300.0,0.00028742,2]
[339034104,1727153438129,-1947.20648903,0.00028743,2]
[339034163,1727153445879,-231.471019,0.00028657,2]
[339034164,1727153445889,-3000.0,0.00028662,2]
[339034165,1727153445898,-18869.01057387,0.00028743,2]
[339034166,1727153445908,-196.43896982,0.00028895,2]
[339034167,1727153445918,-500.0,0.00029,5]
[339034168,1727153445933,-387.38005517,0.00029,5]
[339034169,1727153445942,-166.697417,0.00029087,2]
[339034170,1727153445951,-393.73304433,0.00029548,5]
[339034171,1727153445960,-151.0,0.0003,120]
[339034172,1727153445970,-151.0,0.0003,120]
[339034173,1727153445979,-196.01906934,0.0003,3]
[339034174,1727153445988,-241.0,0.0003,2]
[339034175,1727153445997,-231.471019,0.00030027,2]
[339034176,1727153446007,-166.697417,0.00030943,2]